[Event "*** SCC Grand Prix: Titled Tuesday Blitz"]
[Site "Chess.com"]
[Date "2020.08.11"]
[Round "8"]
[White "mjray79"]
[Black "Dvacetsekund"]
[Result "1-0"]
[WhiteElo "2359"]
[BlackElo "2145"]
[TimeControl "180+1"]
[EndTime "11:33:33 PDT"]
[Termination "mjray79 won by resignation"]

1. d4 {[%clk 0:03:00.9]} 1... d5 {[%clk 0:02:57.9]} 2. c4 {[%clk 0:03:00.9]}
2... e6 {[%clk 0:02:58.1]} 3. Nf3 {[%clk 0:03:00.2]} 3... Nf6 {[%clk 0:02:57.3]}
4. g3 {[%clk 0:03:00.1]} 4... Bb4+ {[%clk 0:02:56]} 5. Bd2 {[%clk 0:02:59.3]}
5... Be7 {[%clk 0:02:55.6]} 6. Bg2 {[%clk 0:02:59.2]} 6... O-O {[%clk
0:02:54.8]} 7. O-O {[%clk 0:02:59.6]} 7... c6 {[%clk 0:02:55.1]} 8. Qc2 {[%clk
0:02:59.2]} 8... b6 {[%clk 0:02:54.1]} 9. Bf4 {[%clk 0:02:58.7]} 9... Bb7 {[%clk
0:02:45]} 10. Nc3 {[%clk 0:02:58.3]} 10... Nh5 {[%clk 0:02:42.9]} 11. Bd2 {[%clk
0:02:53.4]} 11... Nf6 {[%clk 0:02:41.6]} 12. e4 {[%clk 0:02:53.2]} 12... dxe4
{[%clk 0:02:37.9]} 13. Nxe4 {[%clk 0:02:54.1]} 13... Nbd7 {[%clk 0:02:26]} 14.
Rfd1 {[%clk 0:02:46.3]} 14... Nxe4 {[%clk 0:02:23.2]} 15. Qxe4 {[%clk
0:02:47.2]} 15... Nf6 {[%clk 0:02:23.5]} 16. Qe2 {[%clk 0:02:46.1]} 16... c5
{[%clk 0:02:23.5]} 17. Bf4 {[%clk 0:02:45.3]} 17... cxd4 {[%clk 0:02:14.3]} 18.
Nxd4 {[%clk 0:02:46.2]} 18... Qc8 {[%clk 0:02:09.1]} 19. Bh3 {[%clk 0:02:37.5]}
19... Qc5 {[%clk 0:01:42.6]} 20. Rac1 {[%clk 0:02:24.9]} 20... Rad8 {[%clk
0:01:40.5]} 21. Be3 {[%clk 0:02:15.7]} 21... Rxd4 {[%clk 0:01:21.2]} 22. Bxd4
{[%clk 0:02:07.1]} 22... Qc6 {[%clk 0:01:21]} 23. f3 {[%clk 0:02:07.3]} 23...
Qxf3 {[%clk 0:01:01.3]} 24. Qxf3 {[%clk 0:02:06.7]} 24... Bxf3 {[%clk
0:01:02.2]} 25. Rf1 {[%clk 0:02:06.6]} 25... Be4 {[%clk 0:00:59.9]} 26. Bg2
{[%clk 0:02:02.4]} 26... Rd8 {[%clk 0:00:56.5]} 27. Bxf6 {[%clk 0:01:54.8]}
27... Bc5+ {[%clk 0:00:40.4]} 28. Kh1 {[%clk 0:01:54.2]} 28... Bxg2+ {[%clk
0:00:38]} 29. Kxg2 {[%clk 0:01:55.1]} 29... Rd2+ {[%clk 0:00:36.5]} 30. Kh1
{[%clk 0:01:51.5]} 30... gxf6 {[%clk 0:00:36.5]} 31. Rb1 {[%clk 0:01:33.3]}
31... f5 {[%clk 0:00:36.5]} 32. b4 {[%clk 0:01:32.2]} 32... Be3 {[%clk
0:00:29.6]} 33. Rf3 {[%clk 0:01:25.4]} 33... Bg5 {[%clk 0:00:25.6]} 34. a3
{[%clk 0:01:18]} 34... Be7 {[%clk 0:00:21.4]} 35. Rc1 {[%clk 0:01:16.6]} 35...
Kg7 {[%clk 0:00:07.4]} 36. c5 {[%clk 0:01:16.5]} 36... bxc5 {[%clk 0:00:07.9]}
37. bxc5 {[%clk 0:01:17.4]} 37... Rd8 {[%clk 0:00:07.1]} 38. c6 {[%clk
0:01:14.8]} 38... Rc8 {[%clk 0:00:07.6]} 39. Rb3 {[%clk 0:01:14.3]} 39... Rc7
{[%clk 0:00:06]} 40. Rb7 {[%clk 0:01:14.2]} 40... Bd6 {[%clk 0:00:05.2]} 41.
Rxc7 {[%clk 0:01:11.2]} 41... Bxc7 {[%clk 0:00:06.1]} 42. Rd1 {[%clk 0:01:10.6]}
42... Kf6 {[%clk 0:00:07]} 43. Rd7 {[%clk 0:01:10.3]} 1-0

[Event "*** SCC Grand Prix: Titled Tuesday Blitz"]
[Site "Chess.com"]
[Date "2020.08.11"]
[Round "8"]
[White "Duong57"]
[Black "ethylalcohol"]
[Result "1-0"]
[WhiteElo "2329"]
[BlackElo "2183"]
[TimeControl "180+1"]
[EndTime "11:33:34 PDT"]
[Termination "Duong57 won on time"]

1. d4 {[%clk 0:03:00.9]} 1... Nf6 {[%clk 0:02:59.8]} 2. c4 {[%clk 0:03:00.9]}
2... g6 {[%clk 0:03:00]} 3. Nc3 {[%clk 0:03:01.2]} 3... Bg7 {[%clk 0:03:00.4]}
4. e4 {[%clk 0:03:01.7]} 4... d6 {[%clk 0:03:00.9]} 5. Nf3 {[%clk 0:03:02.3]}
5... O-O {[%clk 0:03:00.9]} 6. Be2 {[%clk 0:03:02.9]} 6... Nc6 {[%clk
0:03:01.4]} 7. O-O {[%clk 0:03:03.2]} 7... e5 {[%clk 0:03:01.9]} 8. d5 {[%clk
0:03:03.8]} 8... Ne7 {[%clk 0:03:02.4]} 9. b4 {[%clk 0:03:04.4]} 9... a5 {[%clk
0:02:59.3]} 10. Ba3 {[%clk 0:03:03.1]} 10... axb4 {[%clk 0:02:57.3]} 11. Bxb4
{[%clk 0:03:03]} 11... b6 {[%clk 0:02:48.6]} 12. a4 {[%clk 0:03:02.7]} 12... Ne8
{[%clk 0:02:47.4]} 13. Nb5 {[%clk 0:03:02.3]} 13... Bd7 {[%clk 0:02:43.4]} 14.
a5 {[%clk 0:02:40.9]} 14... bxa5 {[%clk 0:02:31]} 15. Bxa5 {[%clk 0:02:39.3]}
15... h6 {[%clk 0:02:09.4]} 16. Bc3 {[%clk 0:01:56]} 16... Rxa1 {[%clk
0:02:02.1]} 17. Qxa1 {[%clk 0:01:54.3]} 17... f5 {[%clk 0:02:01.9]} 18. Nd2
{[%clk 0:01:54.1]} 18... fxe4 {[%clk 0:01:53.1]} 19. Nxe4 {[%clk 0:01:53.2]}
19... Nf5 {[%clk 0:01:45.5]} 20. c5 {[%clk 0:01:44.8]} 20... Qh4 {[%clk
0:01:36.1]} 21. Qb1 {[%clk 0:00:58.9]} 21... Bxb5 {[%clk 0:00:30]} 22. Bxb5
{[%clk 0:00:57.8]} 22... Nd4 {[%clk 0:00:24.5]} 23. Bxd4 {[%clk 0:00:50.1]}
23... exd4 {[%clk 0:00:23.9]} 24. cxd6 {[%clk 0:00:49.9]} 24... Nxd6 {[%clk
0:00:15.1]} 25. Nxd6 {[%clk 0:00:48.1]} 25... cxd6 {[%clk 0:00:15.3]} 26. Qxg6
{[%clk 0:00:47.7]} 26... Kh8 {[%clk 0:00:09.6]} 27. Bd3 {[%clk 0:00:46.8]} 27...
Kg8 {[%clk 0:00:04.9]} 28. Qh7+ {[%clk 0:00:46.1]} 28... Kf7 {[%clk 0:00:05.2]}
29. Re1 {[%clk 0:00:45.5]} 29... Rh8 {[%clk 0:00:01.3]} 30. Qg6+ {[%clk
0:00:44.8]} 1-0

[Event "*** SCC Grand Prix: Titled Tuesday Blitz"]
[Site "Chess.com"]
[Date "2020.08.11"]
[Round "8"]
[White "jacky72"]
[Black "rugbyclub"]
[Result "1/2-1/2"]
[WhiteElo "2568"]
[BlackElo "2196"]
[TimeControl "180+1"]
[EndTime "11:33:35 PDT"]
[Termination "Game drawn by stalemate"]

1. d4 {[%clk 0:03:00.9]} 1... Nf6 {[%clk 0:02:58.9]} 2. c4 {[%clk 0:03:00.9]}
2... e6 {[%clk 0:02:59]} 3. Nf3 {[%clk 0:03:00.6]} 3... d5 {[%clk 0:02:58.5]} 4.
Nc3 {[%clk 0:03:00]} 4... Bb4 {[%clk 0:02:57.4]} 5. cxd5 {[%clk 0:02:59.2]} 5...
exd5 {[%clk 0:02:56.7]} 6. Bg5 {[%clk 0:02:59.1]} 6... h6 {[%clk 0:02:57]} 7.
Bh4 {[%clk 0:02:58.8]} 7... Nbd7 {[%clk 0:02:56.9]} 8. e3 {[%clk 0:02:58.5]}
8... c5 {[%clk 0:02:56.9]} 9. Bd3 {[%clk 0:02:57.1]} 9... c4 {[%clk 0:02:54.7]}
10. Bc2 {[%clk 0:02:56.8]} 10... Bxc3+ {[%clk 0:02:47.3]} 11. bxc3 {[%clk
0:02:56.3]} 11... O-O {[%clk 0:02:46.1]} 12. O-O {[%clk 0:02:55.5]} 12... Re8
{[%clk 0:02:46.3]} 13. Re1 {[%clk 0:02:53.4]} 13... Qa5 {[%clk 0:02:44.1]} 14.
Qd2 {[%clk 0:02:53.1]} 14... g5 {[%clk 0:02:43.1]} 15. Bxg5 {[%clk 0:02:47.9]}
15... hxg5 {[%clk 0:02:42.4]} 16. Nxg5 {[%clk 0:02:46.6]} 16... Ne4 {[%clk
0:02:41]} 17. Nxe4 {[%clk 0:02:43]} 17... dxe4 {[%clk 0:02:38.1]} 18. f3 {[%clk
0:02:43.9]} 18... Nf6 {[%clk 0:02:33.7]} 19. Rf1 {[%clk 0:02:39.4]} 19... Qg5
{[%clk 0:02:18.5]} 20. f4 {[%clk 0:02:38.8]} 20... Qg6 {[%clk 0:02:10]} 21. f5
{[%clk 0:02:38]} 21... Bxf5 {[%clk 0:02:09.1]} 22. Qf2 {[%clk 0:02:38]} 22...
Ng4 {[%clk 0:02:07.3]} 23. Qxf5 {[%clk 0:02:37.4]} 23... Qxf5 {[%clk 0:02:06.6]}
24. Rxf5 {[%clk 0:02:38.3]} 24... Nxe3 {[%clk 0:02:06.8]} 25. Rf2 {[%clk
0:02:36.8]} 25... Nd5 {[%clk 0:01:53.5]} 26. Raf1 {[%clk 0:02:33.9]} 26... Re7
{[%clk 0:01:52.2]} 27. Rf5 {[%clk 0:02:30]} 27... Nxc3 {[%clk 0:01:38.4]} 28.
Rg5+ {[%clk 0:02:28.3]} 28... Kf8 {[%clk 0:01:35.4]} 29. Rh5 {[%clk 0:02:25.1]}
29... Kg7 {[%clk 0:01:31.1]} 30. Rg5+ {[%clk 0:02:23.5]} 30... Kh6 {[%clk
0:01:27.3]} 31. h4 {[%clk 0:02:24.4]} 31... Ne2+ {[%clk 0:01:24.3]} 32. Kh2
{[%clk 0:02:22.8]} 32... Nxd4 {[%clk 0:01:24.8]} 33. Bd1 {[%clk 0:02:22.9]}
33... f5 {[%clk 0:01:22.7]} 34. g4 {[%clk 0:02:22.1]} 34... e3 {[%clk
0:01:20.4]} 35. gxf5 {[%clk 0:02:16.8]} 35... e2 {[%clk 0:01:20.1]} 36. Bxe2
{[%clk 0:02:15.2]} 36... Rxe2+ {[%clk 0:01:19.4]} 37. Kh1 {[%clk 0:02:15.4]}
37... Rae8 {[%clk 0:00:58.6]} 38. f6 {[%clk 0:02:14]} 38... R8e4 {[%clk
0:00:55.8]} 39. f7 {[%clk 0:02:11.3]} 39... Rxh4+ {[%clk 0:00:54.8]} 40. Kg1
{[%clk 0:02:11.6]} 40... Ne6 {[%clk 0:00:52.1]} 41. Rg8 {[%clk 0:02:05.2]} 41...
Kh7 {[%clk 0:00:33.8]} 42. Rf6 {[%clk 0:02:01.5]} 42... Rd4 {[%clk 0:00:26.7]}
43. Kf1 {[%clk 0:01:53.9]} 43... Rxa2 {[%clk 0:00:24.1]} 44. Rxe6 {[%clk
0:01:52.4]} 44... Rf4+ {[%clk 0:00:24.2]} 45. Kg1 {[%clk 0:01:48.9]} 45... Rxf7
{[%clk 0:00:24.8]} 46. Rg3 {[%clk 0:01:48.7]} 46... Rg7 {[%clk 0:00:24.4]} 47.
Rxg7+ {[%clk 0:01:48]} 47... Kxg7 {[%clk 0:00:25]} 48. Re7+ {[%clk 0:01:48.9]}
48... Kf6 {[%clk 0:00:24.9]} 49. Rxb7 {[%clk 0:01:49.8]} 49... Ke5 {[%clk
0:00:22.8]} 50. Kf1 {[%clk 0:01:49.3]} 50... Kd4 {[%clk 0:00:22]} 51. Ke1 {[%clk
0:01:49.6]} 51... Kc3 {[%clk 0:00:22]} 52. Rh7 {[%clk 0:01:49.8]} 52... a5
{[%clk 0:00:22]} 53. Rh3+ {[%clk 0:01:49.3]} 53... Kb4 {[%clk 0:00:22]} 54. Kd1
{[%clk 0:01:49.3]} 54... a4 {[%clk 0:00:21.8]} 55. Kc1 {[%clk 0:01:49.6]} 55...
Rg2 {[%clk 0:00:20.6]} 56. Kb1 {[%clk 0:01:47.6]} 56... a3 {[%clk 0:00:20.7]}
57. Rf3 {[%clk 0:01:47.5]} 57... c3 {[%clk 0:00:17.9]} 58. Rf8 {[%clk 0:01:47]}
58... Rb2+ {[%clk 0:00:18.3]} 59. Ka1 {[%clk 0:01:46.8]} 59... Kb3 {[%clk
0:00:18.4]} 60. Rb8+ {[%clk 0:01:41.6]} 60... Kc2 {[%clk 0:00:18.5]} 61. Rh8
{[%clk 0:01:42.5]} 61... Kd3 {[%clk 0:00:18.5]} 62. Rh3+ {[%clk 0:01:42]} 62...
Kc4 {[%clk 0:00:18.8]} 63. Rxc3+ {[%clk 0:01:42.1]} 63... Kxc3 {[%clk
0:00:17.6]} 1/2-1/2

[Event "*** SCC Grand Prix: Titled Tuesday Blitz"]
[Site "Chess.com"]
[Date "2020.08.11"]
[Round "8"]
[White "VladimirBelous"]
[Black "PSvidler"]
[Result "0-1"]
[WhiteElo "2765"]
[BlackElo "2949"]
[TimeControl "180+1"]
[EndTime "11:33:36 PDT"]
[Termination "PSvidler won by resignation"]

1. c4 {[%clk 0:03:00.9]} 1... g6 {[%clk 0:02:59]} 2. Nf3 {[%clk 0:03:00]} 2...
Bg7 {[%clk 0:02:58.3]} 3. Nc3 {[%clk 0:02:59.5]} 3... c5 {[%clk 0:02:57.5]} 4.
g3 {[%clk 0:02:57.6]} 4... Nc6 {[%clk 0:02:57.5]} 5. Bg2 {[%clk 0:02:56.8]} 5...
d6 {[%clk 0:02:57.8]} 6. Rb1 {[%clk 0:02:45.4]} 6... Bf5 {[%clk 0:02:52.7]} 7.
d3 {[%clk 0:02:45.3]} 7... Qd7 {[%clk 0:02:52.1]} 8. O-O {[%clk 0:02:28.6]} 8...
Nf6 {[%clk 0:02:45.9]} 9. a3 {[%clk 0:02:24]} 9... Bh3 {[%clk 0:02:35.2]} 10. b4
{[%clk 0:02:20.2]} 10... Bxg2 {[%clk 0:02:35]} 11. Kxg2 {[%clk 0:02:20.4]} 11...
O-O {[%clk 0:02:33.8]} 12. e4 {[%clk 0:02:05]} 12... Ng4 {[%clk 0:02:27.9]} 13.
Ne2 {[%clk 0:01:57.2]} 13... Nge5 {[%clk 0:02:13]} 14. Nxe5 {[%clk 0:01:52.7]}
14... Nxe5 {[%clk 0:02:06.6]} 15. Bb2 {[%clk 0:01:46.9]} 15... cxb4 {[%clk
0:02:01.5]} 16. axb4 {[%clk 0:01:43.5]} 16... b5 {[%clk 0:02:01.5]} 17. Bxe5
{[%clk 0:01:04.7]} 17... Bxe5 {[%clk 0:01:59.9]} 18. d4 {[%clk 0:01:01.5]} 18...
Bg7 {[%clk 0:01:59.7]} 19. c5 {[%clk 0:01:02]} 19... dxc5 {[%clk 0:01:52.1]} 20.
dxc5 {[%clk 0:00:59.5]} 20... Qc7 {[%clk 0:01:52.4]} 21. Qc2 {[%clk 0:00:53.2]}
21... a5 {[%clk 0:01:52.3]} 22. bxa5 {[%clk 0:00:51]} 22... Rxa5 {[%clk
0:01:52]} 23. Nf4 {[%clk 0:00:48.6]} 23... e6 {[%clk 0:01:50.9]} 24. Rfd1 {[%clk
0:00:44.8]} 24... Rc8 {[%clk 0:01:39.7]} 25. c6 {[%clk 0:00:36.7]} 25... Bf8
{[%clk 0:01:28.6]} 26. Rbc1 {[%clk 0:00:27.9]} 26... Ra6 {[%clk 0:01:28.4]} 27.
Rd7 {[%clk 0:00:12.6]} 27... Qxc6 {[%clk 0:01:26.7]} 28. Qxc6 {[%clk 0:00:13.5]}
28... Raxc6 {[%clk 0:01:26.7]} 29. Rxc6 {[%clk 0:00:14.4]} 29... Rxc6 {[%clk
0:01:27]} 30. Nd3 {[%clk 0:00:14.8]} 30... Rd6 {[%clk 0:01:25.6]} 31. Rxd6
{[%clk 0:00:12.4]} 31... Bxd6 {[%clk 0:01:25.4]} 32. Kf3 {[%clk 0:00:12.4]}
32... Kf8 {[%clk 0:01:25.5]} 33. Ke3 {[%clk 0:00:10.5]} 33... Ke7 {[%clk
0:01:24.8]} 34. Kd4 {[%clk 0:00:11.2]} 34... Kd7 {[%clk 0:01:23.7]} 35. f4
{[%clk 0:00:11]} 35... Kc6 {[%clk 0:01:23.7]} 36. e5 {[%clk 0:00:09.4]} 36...
Be7 {[%clk 0:01:22.6]} 37. g4 {[%clk 0:00:10.3]} 37... b4 {[%clk 0:01:11.7]} 38.
Kc4 {[%clk 0:00:10.3]} 38... b3 {[%clk 0:01:12.1]} 39. f5 {[%clk 0:00:02.5]}
39... gxf5 {[%clk 0:01:11.3]} 40. gxf5 {[%clk 0:00:03.4]} 40... exf5 {[%clk
0:01:11.9]} 41. Kxb3 {[%clk 0:00:04]} 41... Kd5 {[%clk 0:01:12.3]} 42. Kc2
{[%clk 0:00:04.6]} 42... Ke4 {[%clk 0:01:12.6]} 43. Kd2 {[%clk 0:00:04.9]} 43...
f4 {[%clk 0:01:12.6]} 44. Ke2 {[%clk 0:00:05.3]} 44... f3+ {[%clk 0:01:12.8]}
45. Kd2 {[%clk 0:00:05]} 45... Bg5+ {[%clk 0:01:13.1]} 46. Kc2 {[%clk
0:00:04.3]} 46... Ke3 {[%clk 0:01:13.2]} 47. h4 {[%clk 0:00:02.9]} 47... Bxh4
{[%clk 0:01:12.8]} 0-1

[Event "*** SCC Grand Prix: Titled Tuesday Blitz"]
[Site "Chess.com"]
[Date "2020.08.11"]
[Round "8"]
[White "dosto07"]
[Black "maxip32"]
[Result "1-0"]
[WhiteElo "2305"]
[BlackElo "2444"]
[TimeControl "180+1"]
[EndTime "11:33:36 PDT"]
[Termination "dosto07 won on time"]

1. d4 {[%clk 0:03:00.9]} 1... Nf6 {[%clk 0:03:00.1]} 2. Nf3 {[%clk 0:02:59.4]}
2... g6 {[%clk 0:03:00.3]} 3. Bf4 {[%clk 0:02:58]} 3... Bg7 {[%clk 0:03:00.4]}
4. e3 {[%clk 0:02:58.1]} 4... O-O {[%clk 0:03:00.5]} 5. h3 {[%clk 0:02:55.6]}
5... d6 {[%clk 0:03:00.3]} 6. Be2 {[%clk 0:02:54.9]} 6... b6 {[%clk 0:03:00.6]}
7. O-O {[%clk 0:02:53.7]} 7... Bb7 {[%clk 0:02:59.7]} 8. c4 {[%clk 0:02:52.5]}
8... Ne4 {[%clk 0:02:59.6]} 9. Nbd2 {[%clk 0:02:49.4]} 9... Nxd2 {[%clk
0:02:55]} 10. Qxd2 {[%clk 0:02:45.6]} 10... Nd7 {[%clk 0:02:55.9]} 11. Rfe1
{[%clk 0:02:32.4]} 11... Nf6 {[%clk 0:02:54.2]} 12. d5 {[%clk 0:02:22.8]} 12...
c6 {[%clk 0:02:47.5]} 13. dxc6 {[%clk 0:02:10.1]} 13... Bxc6 {[%clk 0:02:48.4]}
14. Nd4 {[%clk 0:02:07.4]} 14... Bb7 {[%clk 0:02:46]} 15. Bh2 {[%clk 0:02:06.7]}
15... Rc8 {[%clk 0:02:37.8]} 16. Rac1 {[%clk 0:01:56.4]} 16... Ne4 {[%clk
0:02:32.6]} 17. Qd1 {[%clk 0:01:43.8]} 17... a6 {[%clk 0:02:08.1]} 18. Bf3
{[%clk 0:01:43.4]} 18... e5 {[%clk 0:01:58.4]} 19. Ne2 {[%clk 0:01:32.1]} 19...
f5 {[%clk 0:01:28.5]} 20. Bxe4 {[%clk 0:01:29.6]} 20... Bxe4 {[%clk 0:01:18.7]}
21. Nc3 {[%clk 0:01:25.9]} 21... Bb7 {[%clk 0:00:55.2]} 22. Qb3 {[%clk
0:01:17.7]} 22... Kh8 {[%clk 0:00:54.2]} 23. Red1 {[%clk 0:01:17.9]} 23... Qc7
{[%clk 0:00:30.5]} 24. Nd5 {[%clk 0:00:57.1]} 24... Bxd5 {[%clk 0:00:25.2]} 25.
Rxd5 {[%clk 0:00:56.9]} 25... b5 {[%clk 0:00:25.5]} 26. Rcd1 {[%clk 0:00:54.5]}
26... bxc4 {[%clk 0:00:25.2]} 27. Qa3 {[%clk 0:00:50.3]} 27... Rf6 {[%clk
0:00:19.4]} 28. Rxd6 {[%clk 0:00:42.6]} 28... Bf8 {[%clk 0:00:18]} 29. Bxe5
{[%clk 0:00:41.2]} 29... Bxd6 {[%clk 0:00:03.7]} 30. Rxd6 {[%clk 0:00:37.8]} 1-0

[Event "*** SCC Grand Prix: Titled Tuesday Blitz"]
[Site "Chess.com"]
[Date "2020.08.11"]
[Round "8"]
[White "Ave_Mariia"]
[Black "Alexandr_Kholin"]
[Result "0-1"]
[WhiteElo "2395"]
[BlackElo "2519"]
[TimeControl "180+1"]
[EndTime "11:33:37 PDT"]
[Termination "Alexandr_Kholin won by checkmate"]

1. d4 {[%clk 0:03:00.9]} 1... d5 {[%clk 0:02:48.4]} 2. c4 {[%clk 0:03:00.7]}
2... e6 {[%clk 0:02:47.8]} 3. Nf3 {[%clk 0:03:00.1]} 3... Be7 {[%clk 0:02:43.8]}
4. g3 {[%clk 0:02:58.6]} 4... Nf6 {[%clk 0:02:30.6]} 5. Bg2 {[%clk 0:02:58.4]}
5... O-O {[%clk 0:02:30.2]} 6. O-O {[%clk 0:02:58.5]} 6... Nbd7 {[%clk
0:02:27.1]} 7. Qc2 {[%clk 0:02:55.8]} 7... dxc4 {[%clk 0:02:24.3]} 8. Nbd2
{[%clk 0:02:52.2]} 8... b5 {[%clk 0:02:19.4]} 9. Ne5 {[%clk 0:02:31.8]} 9...
Nxe5 {[%clk 0:02:17.4]} 10. Bxa8 {[%clk 0:02:26.9]} 10... Qxd4 {[%clk
0:02:17.9]} 11. Nf3 {[%clk 0:02:20.9]} 11... Nxf3+ {[%clk 0:02:16.7]} 12. Bxf3
{[%clk 0:02:20.2]} 12... Nd5 {[%clk 0:02:14.2]} 13. a3 {[%clk 0:02:06.9]} 13...
Bb7 {[%clk 0:02:11.3]} 14. Rd1 {[%clk 0:02:01.5]} 14... Qc5 {[%clk 0:02:08.8]}
15. e4 {[%clk 0:01:56]} 15... Nb6 {[%clk 0:02:06.5]} 16. Be3 {[%clk 0:01:53.4]}
16... Qc6 {[%clk 0:02:04.6]} 17. Bg2 {[%clk 0:01:37.9]} 17... h6 {[%clk
0:02:03.4]} 18. Rd2 {[%clk 0:01:36.2]} 18... a5 {[%clk 0:01:59.4]} 19. f4 {[%clk
0:01:25.7]} 19... Bc5 {[%clk 0:01:56.1]} 20. Bf2 {[%clk 0:01:18.8]} 20... Bxf2+
{[%clk 0:01:54.4]} 21. Rxf2 {[%clk 0:01:18.5]} 21... Qc5 {[%clk 0:01:52.9]} 22.
Kh1 {[%clk 0:01:12.9]} 22... b4 {[%clk 0:01:47.1]} 23. axb4 {[%clk 0:01:11.8]}
23... axb4 {[%clk 0:01:48]} 24. Rd2 {[%clk 0:01:07.5]} 24... e5 {[%clk
0:01:44.9]} 25. Ra7 {[%clk 0:01:02.2]} 25... Rb8 {[%clk 0:01:35.7]} 26. Qd1
{[%clk 0:00:57.3]} 26... c3 {[%clk 0:01:33.2]} 27. bxc3 {[%clk 0:00:54.4]} 27...
bxc3 {[%clk 0:01:34.1]} 28. Rc2 {[%clk 0:00:50.7]} 28... Nc4 {[%clk 0:01:32.2]}
29. Rxb7 {[%clk 0:00:30]} 29... Rxb7 {[%clk 0:01:33]} 30. Rxc3 {[%clk
0:00:30.1]} 30... Qb4 {[%clk 0:01:30.7]} 31. Rc1 {[%clk 0:00:25.3]} 31... Ne3
{[%clk 0:01:28.5]} 32. Qd8+ {[%clk 0:00:23.6]} 32... Kh7 {[%clk 0:01:25.6]} 33.
Qd7 {[%clk 0:00:10.6]} 33... c5 {[%clk 0:01:14.7]} 34. Qc8 {[%clk 0:00:09.5]}
34... Nxg2 {[%clk 0:01:12.2]} 35. Rxc5 {[%clk 0:00:05.5]} 35... Ne3 {[%clk
0:01:07]} 36. Rxe5 {[%clk 0:00:03.7]} 36... Qe1# {[%clk 0:01:04.6]} 0-1

[Event "*** SCC Grand Prix: Titled Tuesday Blitz"]
[Site "Chess.com"]
[Date "2020.08.11"]
[Round "8"]
[White "chito89"]
[Black "wild_cat99"]
[Result "1-0"]
[WhiteElo "2758"]
[BlackElo "2632"]
[TimeControl "180+1"]
[EndTime "11:33:38 PDT"]
[Termination "chito89 won by checkmate"]

1. c4 {[%clk 0:02:56.2]} 1... Nf6 {[%clk 0:03:00.3]} 2. Nc3 {[%clk 0:02:54.2]}
2... e5 {[%clk 0:03:00.4]} 3. Nf3 {[%clk 0:02:49.2]} 3... Nc6 {[%clk 0:02:59.9]}
4. g3 {[%clk 0:02:47.5]} 4... d5 {[%clk 0:02:59.7]} 5. cxd5 {[%clk 0:02:46]}
5... Nxd5 {[%clk 0:03:00.6]} 6. Bg2 {[%clk 0:02:46.2]} 6... Be6 {[%clk
0:02:59.9]} 7. O-O {[%clk 0:02:46.2]} 7... Be7 {[%clk 0:02:48.1]} 8. d3 {[%clk
0:02:37.5]} 8... O-O {[%clk 0:02:45.4]} 9. Bd2 {[%clk 0:02:22.4]} 9... Nb6
{[%clk 0:02:39.7]} 10. a3 {[%clk 0:02:09]} 10... a5 {[%clk 0:02:29]} 11. Na4
{[%clk 0:02:09.5]} 11... Qd7 {[%clk 0:02:11.9]} 12. Nxb6 {[%clk 0:01:58.2]}
12... cxb6 {[%clk 0:02:12.8]} 13. Be3 {[%clk 0:01:56.7]} 13... b5 {[%clk
0:02:01.8]} 14. Rc1 {[%clk 0:01:57.2]} 14... Rfd8 {[%clk 0:01:48.1]} 15. Nd2
{[%clk 0:01:38.1]} 15... Bh3 {[%clk 0:01:47.1]} 16. Bxh3 {[%clk 0:01:33.5]}
16... Qxh3 {[%clk 0:01:48]} 17. Qb3 {[%clk 0:01:33.9]} 17... b4 {[%clk
0:01:42.8]} 18. a4 {[%clk 0:01:31.7]} 18... Rd6 {[%clk 0:01:29.9]} 19. Nf3
{[%clk 0:01:19.7]} 19... h5 {[%clk 0:01:18.3]} 20. Rc4 {[%clk 0:01:15.6]} 20...
h4 {[%clk 0:00:54.8]} 21. Nxh4 {[%clk 0:01:09.4]} 21... g5 {[%clk 0:00:54.8]}
22. Nf3 {[%clk 0:01:00.2]} 22... g4 {[%clk 0:00:54.3]} 23. Nd2 {[%clk
0:00:36.3]} 23... Kg7 {[%clk 0:00:44.1]} 24. Rfc1 {[%clk 0:00:32.1]} 24... Rh8
{[%clk 0:00:21]} 25. Nf1 {[%clk 0:00:32]} 25... Nd4 {[%clk 0:00:21.4]} 26. Bxd4
{[%clk 0:00:31.6]} 26... exd4 {[%clk 0:00:20.3]} 27. Rc7 {[%clk 0:00:31.9]}
27... Bg5 {[%clk 0:00:19.4]} 28. Qxf7+ {[%clk 0:00:30.1]} 28... Kh6 {[%clk
0:00:19.4]} 29. Qg7+ {[%clk 0:00:29.9]} 29... Kh5 {[%clk 0:00:19.1]} 30. Qxh8+
{[%clk 0:00:29.7]} 30... Kg6 {[%clk 0:00:20]} 31. Qg7+ {[%clk 0:00:26.2]} 31...
Kf5 {[%clk 0:00:19.9]} 32. R1c5+ {[%clk 0:00:25.9]} 32... Ke6 {[%clk 0:00:18.8]}
33. Qf7# {[%clk 0:00:25.8]} 1-0